fUST/lending_fUST_20250930
["ID","MTS","AMOUNT","RATE_DAILY","PERIOD"]
[388437221,1759168248028,-151.0,0.00023985,2]
[388437222,1759168248038,-500.0,0.00023985,2]
[388437223,1759168248049,-200.49128938,0.00023985,2]
[388437224,1759168248060,-151.0,0.00023985,2]
[388437225,1759168248070,-500.0,0.00023985,2]
[388437226,1759168248081,-151.0,0.00023985,2]
[388437227,1759168248090,-255.0,0.00023985,2]
[388437228,1759168248100,-298.48733986,0.00023985,2]
[388437229,1759168248109,-1568.0,0.00023985,2]
[388437230,1759168248119,-180.67429611,0.00023985,2]
[388437231,1759168248129,-500.0,0.00023985,2]
[388437232,1759168248139,-500.0,0.00023985,2]
[388437233,1759168248149,-500.0,0.00023985,2]
[388437235,1759168248158,-151.0,0.00023985,2]
[388437236,1759168248168,-500.0,0.00023985,2]
[388437237,1759168248179,-500.0,0.00023985,2]
[388437238,1759168248188,-500.0,0.00023985,2]
[388437239,1759168248198,-154.48522388,0.00023985,2]
[388437240,1759168248207,-480.0,0.00023985,2]
[388437242,1759168248217,-538.97,0.00023985,2]
[388437243,1759168248226,-480.0,0.00023985,2]
[388437244,1759168248235,-480.0,0.00023985,2]
[388437245,1759168248245,-697.75,0.00023985,2]
[388437246,1759168248254,-643.93,0.00023985,2]
[388437247,1759168248264,-1169.7,0.00023985,2]
[388437249,1759168248273,-629.01,0.00023985,2]
[388437250,1759168248283,-649.28,0.00023985,2]
[388437251,1759168248293,-560.96,0.00023985,2]
[388437252,1759168248303,-480.0,0.00023985,2]
[388437253,1759168248312,-602.44,0.00023985,2]
[388437254,1759168248323,-480.19,0.00023985,2]
[388437256,1759168248332,-555.56,0.00023985,2]
[388437257,1759168248342,-480.0,0.00023985,2]
[388437258,1759168248351,-480.0,0.00023985,2]
[388437259,1759168248361,-749.46,0.00023985,2]
[388437260,1759168248370,-1824.22,0.00023985,2]
[388437261,1759168248380,-480.0,0.00023985,2]
[388437263,1759168248389,-480.0,0.00023985,2]
[388437264,1759168248398,-151.0,0.00023985,7]
[388437265,1759168248408,-151.0,0.00023985,7]
[388437266,1759168248417,-151.0,0.00023985,7]
[388437267,1759168248429,-151.0,0.00023985,7]
[388437268,1759168248439,-10000.0,0.00023985,7]
[388437270,1759168248450,-151.0,0.00023985,7]
[388437271,1759168248459,-10000.0,0.00023985,7]
[388437272,1759168248469,-10000.0,0.00023985,7]
[388437273,1759168248479,-10000.0,0.00023985,7]
[388437274,1759168248489,-10000.0,0.00023985,7]
[388437275,1759168248498,-151.0,0.00023985,7]
[388437277,1759168248507,-151.0,0.00023985,7]
[388437278,1759168248516,-151.0,0.00023985,7]
[388437279,1759168248526,-151.0,0.00023985,7]
[388437280,1759168248535,-500.0,0.00023987,3]
[388437281,1759168248547,-100000.0,0.0002399,2]
[388437283,1759168248556,-151.0,0.0002399,7]
[388437284,1759168248566,-151.0,0.0002399,7]
[388437285,1759168248576,-151.0,0.0002399,7]
[388437286,1759168248586,-151.0,0.0002399,7]
[388437287,1759168248595,-151.0,0.0002399,7]
[388437288,1759168248605,-151.0,0.0002399,7]
[388437290,1759168248615,-151.0,0.0002399,7]
[388437291,1759168248625,-151.0,0.0002399,7]
[388437292,1759168248635,-151.0,0.0002399,7]
[388437293,1759168248644,-151.0,0.0002399,7]
[388437294,1759168248654,-151.0,0.0002399,7]
[388437295,1759168248664,-151.0,0.0002399,7]
[388437297,1759168248675,-151.0,0.0002399,7]
[388437298,1759168248685,-151.0,0.0002399,7]
[388437299,1759168248695,-151.0,0.0002399,7]
[388437300,1759168248705,-151.0,0.0002399,7]
[388437301,1759168248714,-151.0,0.0002399,7]
[388437302,1759168248724,-151.0,0.0002399,7]
[388437304,1759168248733,-151.0,0.0002399,7]
[388437305,1759168248743,-151.0,0.0002399,7]
[388437306,1759168248753,-151.0,0.0002399,7]
[388437307,1759168248763,-151.0,0.0002399,7]
[388437308,1759168248772,-151.0,0.0002399,7]
[388437310,1759168248782,-151.0,0.0002399,7]
[388437311,1759168248793,-151.0,0.0002399,7]
[388437312,1759168248803,-153.871709,0.0002399,7]
[388437313,1759168248813,-180.758138,0.0002399,7]
[388437314,1759168248823,-151.0,0.0002399,7]
[388437315,1759168248832,-180.758138,0.0002399,7]
[388437317,1759168248842,-180.758138,0.0002399,7]
[388437318,1759168248851,-151.0,0.0002399,7]
[388437319,1759168248862,-151.0,0.0002399,7]
[388437320,1759168248873,-151.0,0.0002399,7]
[388437321,1759168248885,-180.758138,0.0002399,7]
[388437323,1759168248895,-151.0,0.0002399,7]
[388437324,1759168248904,-151.0,0.0002399,7]
[388437325,1759168248914,-151.0,0.0002399,7]
[388437326,1759168248924,-151.0,0.0002399,7]
[388437327,1759168248934,-151.0,0.0002399,7]
[388437328,1759168248945,-151.0,0.0002399,7]
[388437330,1759168248955,-151.0,0.0002399,7]
[388437331,1759168248965,-151.0,0.0002399,7]
[388437332,1759168248975,-249.303497,0.0002399,7]
[388437333,1759168248986,-151.0,0.0002399,7]
[388437334,1759168248996,-151.0,0.0002399,7]
[388437335,1759168249008,-151.0,0.0002399,7]
[388437337,1759168249018,-151.0,0.0002399,7]
[388437338,1759168249028,-151.0,0.0002399,7]
[388437339,1759168249039,-249.303497,0.0002399,7]
[388437340,1759168249051,-151.0,0.0002399,7]
[388437341,1759168249062,-249.303497,0.0002399,7]
[388437343,1759168249072,-249.303497,0.0002399,7]
[388437344,1759168249084,-151.0,0.0002399,7]
[388437345,1759168249093,-177.530435,0.0002399,7]
[388437346,1759168249103,-151.0,0.0002399,7]
[388437347,1759168249113,-151.0,0.0002399,7]
[388437348,1759168249123,-151.0,0.0002399,7]
[388437350,1759168249132,-151.0,0.0002399,7]
[388437351,1759168249143,-151.0,0.0002399,7]
[388437352,1759168249155,-152.79694186,0.0002399,7]
[388437353,1759168249165,-151.0,0.0002399,7]
[388437354,1759168249176,-151.0,0.0002399,7]
[388437356,1759168249186,-151.0,0.0002399,7]
[388437357,1759168249196,-151.0,0.0002399,7]
[388437358,1759168249206,-151.0,0.0002399,7]
[388437359,1759168249219,-625.57673,0.0002399,7]
[388437360,1759168249230,-625.57673,0.0002399,7]
[388437362,1759168249240,-625.57673,0.0002399,7]
[388437363,1759168249250,-625.57673,0.0002399,7]
[388437364,1759168249260,-153.200272,0.0002399,7]
[388437365,1759168249270,-151.0,0.0002399,7]
[388437366,1759168249280,-151.0,0.0002399,7]
[388437367,1759168249290,-151.0,0.0002399,7]
[388437369,1759168249300,-151.0,0.0002399,7]
[388437370,1759168249310,-151.0,0.0002399,7]
[388437374,1759168249471,-151.0,0.0002399,7]
[388437375,1759168249505,-151.0,0.0002399,7]
[388437376,1759168249514,-151.0,0.0002399,7]
[388437378,1759168249524,-244.43081,0.0002399,7]
[388437379,1759168249534,-151.0,0.0002399,7]
[388437380,1759168249543,-151.0,0.0002399,7]
[388437381,1759168249553,-151.0,0.0002399,7]
[388437382,1759168249563,-151.0,0.0002399,7]
[388437383,1759168249572,-401.230282,0.0002399,7]
[388437385,1759168249581,-151.0,0.0002399,7]
[388437386,1759168249591,-401.230282,0.0002399,7]
[388437387,1759168249600,-151.0,0.0002399,7]
[388437388,1759168249610,-401.230282,0.0002399,7]
[388437389,1759168249619,-401.230282,0.0002399,7]
[388437391,1759168249629,-151.0,0.0002399,7]
[388437392,1759168249640,-151.0,0.0002399,7]
[388437393,1759168249649,-298.945,0.0002399,7]
[388437394,1759168249659,-151.0,0.0002399,7]
[388437395,1759168249668,-169.358262,0.0002399,7]
[388437396,1759168249678,-169.358262,0.0002399,7]
[388437398,1759168249687,-169.358262,0.0002399,7]
[388437399,1759168249696,-169.358262,0.0002399,7]
[388437400,1759168249705,-151.0,0.0002399,7]
[388437401,1759168249714,-151.0,0.0002399,7]
[388437402,1759168249724,-151.0,0.0002399,7]
[388437403,1759168249734,-151.0,0.0002399,7]
[388437405,1759168249743,-151.0,0.0002399,7]
[388437406,1759168249752,-151.0,0.0002399,7]
[388437407,1759168249762,-151.0,0.0002399,7]
[388437408,1759168249771,-151.0,0.0002399,7]
[388437409,1759168249781,-151.0,0.0002399,7]
[388437410,1759168249791,-358.349785,0.0002399,7]
[388437412,1759168249800,-151.0,0.0002399,7]
[388437413,1759168249809,-151.0,0.0002399,7]
[388437414,1759168249819,-358.349785,0.0002399,7]
[388437415,1759168249828,-358.349785,0.0002399,7]
[388437416,1759168249838,-358.349785,0.0002399,7]
[388437417,1759168249848,-151.0,0.0002399,7]
[388437419,1759168249857,-151.0,0.0002399,7]
[388437420,1759168249868,-151.0,0.0002399,7]
[388437421,1759168249883,-151.0,0.0002399,7]
[388437422,1759168249893,-772.759636,0.0002399,7]
[388437423,1759168249904,-772.759636,0.0002399,7]
[388437424,1759168249914,-772.759636,0.0002399,7]
[388437426,1759168249926,-772.759636,0.0002399,7]
[388437427,1759168249936,-151.0,0.0002399,7]
[388437428,1759168249947,-369.361182,0.0002399,7]
[388437429,1759168249959,-151.0,0.0002399,7]
[388437430,1759168249969,-369.361182,0.0002399,7]
[388437432,1759168249978,-369.361182,0.0002399,7]
[388437433,1759168249988,-369.361182,0.0002399,7]
[388437434,1759168249998,-151.0,0.0002399,7]
[388437435,1759168250007,-151.0,0.0002399,7]
[388437436,1759168250018,-151.0,0.0002399,7]
[388437437,1759168250027,-4340.3587398,0.00024,2]
[388437442,1759168250248,-4670.94071668,0.00024,2]
[388437443,1759168250258,-151.0,0.00024,10]
[388437445,1759168250268,-1711.71331291,0.00024,2]
[388437446,1759168250278,-163.39735361,0.00024,2]
[388437447,1759168250289,-458.96380242,0.00024,2]
[388437448,1759168250299,-151.0,0.00024,7]
[388437449,1759168250310,-151.0,0.00024,9]
[388437450,1759168250319,-389.0,0.00024,2]
[388437452,1759168250329,-151.0,0.00024,10]
[388437453,1759168250340,-10622.80306945,0.00024,20]
[388437462,1759168250825,-480.0,0.00023431,2]
[388437463,1759168250835,-480.0,0.00023435,2]
[388437464,1759168250845,-186.38023505,0.00023435,2]
[388437465,1759168250856,-480.0,0.00023705,2]
[388437466,1759168250866,-224.07,0.00023709,2]
[388437468,1759168250880,-225.8,0.00023979,2]
[388437469,1759168250890,-6312.86571295,0.00024,20]
[388437470,1759168250901,-10668.404052,0.00024,20]
[388437473,1759168251036,-480.0,0.00023434,2]
[388437474,1759168251045,-480.0,0.00023435,2]
[388437475,1759168251054,-480.0,0.00023709,2]
[388437477,1759168251064,-480.0,0.00023983,2]
[388437478,1759168251074,-58080.0,0.00024,20]
[388437539,1759168254577,335071.30060707,0.00023335,2]
[388437551,1759168255058,-300.0,0.00023335,2]
[388437640,1759168259512,-10000.01,0.00023335,2]
[388437642,1759168259554,-10000.01,0.00023335,2]
[388437648,1759168259754,-10000.01,0.00023335,2]
[388437652,1759168259887,-163.90713401,0.00023335,2]
[388437653,1759168259920,-4464.76225892,0.00023335,2]
[388437655,1759168259952,-469.60408162,0.0002343,2]
[388437657,1759168259999,-131.27731892,0.0002343,2]
[388437705,1759168262076,-176.64060893,0.00023102,13]
[388437797,1759168266021,-160.42024546,0.00023102,13]
[388437872,1759168269506,-240.11461042,0.00023102,13]
[388437911,1759168271050,-300.0,0.00022871,13]
[388437950,1759168273011,-275.70701699,0.00022871,13]
[388438014,1759168275597,-253.34067143,0.00022871,13]
[388438079,1759168278502,-290.29063481,0.00022871,13]
[388438133,1759168281196,-179.42085529,0.00022871,13]
[388438188,1759168283635,-190.49204894,0.00022871,13]
[388438236,1759168285664,-169.91,0.00022871,13]
[388438286,1759168287857,-183.94297066,0.00022871,13]
[388438344,1759168290304,-188.0,0.00022871,13]
[388438422,1759168294094,-171.0,0.00022871,13]
[388438450,1759168295634,-240.576327,0.00022871,13]
[388439960,1759168456922,-286.23654563,0.00022642,13]
[388439961,1759168459650,-157.19980469,0.00022642,13]
[388440060,1759168568850,-171.67346954,0.00021847,2]
[388440062,1759168570265,-220.57077846,0.00021847,2]
[388440063,1759168570293,-4558.86844308,0.00022416,13]
[388440064,1759168570344,-441.13155692,0.00022416,13]
[388440065,1759168570376,-248.0,0.00022606,2]
[388440066,1759168570403,-1200.0,0.00022641,2]
[388440067,1759168570430,-300.0,0.00022641,2]
[388440068,1759168570459,-1947.44635032,0.00022642,13]
[388440069,1759168570530,-2609.11729936,0.00022642,13]
[388440070,1759168570576,-248.0,0.00022702,2]
[388440071,1759168570608,-204.0,0.00022796,2]
[388440072,1759168570640,-204.0,0.00022805,2]
[388440073,1759168570670,-248.0,0.00022819,2]
[388440074,1759168570698,-300.0,0.00023083,2]
[388440075,1759168570726,-300.0,0.00023083,2]
[388440076,1759168570757,-300.0,0.00023083,2]
[388440077,1759168570914,-6392.01,0.00023083,2]
[388440078,1759168570952,-10000.01,0.00023083,2]
[388440079,1759168570987,-10000.01,0.00023083,2]
[388440080,1759168571038,-2299.97418353,0.00023083,2]
[388440081,1759168571062,-5400.06163294,0.00023083,2]
[388440082,1759168571224,-204.0,0.00023084,2]
[388440083,1759168571256,-204.0,0.00023123,2]
[388440084,1759168571285,-1000.0,0.00023287,5]
[388440085,1759168571315,-204.0,0.00023296,2]
[388440086,1759168571345,-1200.0,0.00023399,2]
[388440087,1759168571376,-300.0,0.000234,2]
[388440088,1759168571404,-300.0,0.000234,2]
[388440089,1759168571433,-300.0,0.000234,2]
[388440090,1759168571465,-204.0,0.00023409,2]
[388440091,1759168571496,-204.0,0.0002341,2]
[388440092,1759168571526,-853.33,0.0002342,3]
[388440093,1759168571658,-1000.0,0.00023421,2]
[388440094,1759168571686,-975.65501342,0.00023421,2]
[388440095,1759168571710,-151.0,0.00023421,2]
[388440096,1759168571737,-500.0,0.00023421,2]
[388440097,1759168571767,-500.0,0.00023421,2]
[388440098,1759168571799,-500.0,0.00023421,2]
[388440099,1759168571830,-500.0,0.00023421,2]
[388440100,1759168571862,-500.0,0.00023421,2]
[388440101,1759168571895,-246.69997316,0.00023421,2]
[388440102,1759168572022,-253.30002684,0.00023421,2]
[388440103,1759168572052,-500.0,0.00023421,2]
[388440104,1759168572082,-500.0,0.00023421,2]
[388440105,1759168572121,-500.0,0.00023421,2]
[388440106,1759168572151,-500.0,0.00023421,2]
[388440107,1759168572183,-279.8950264,0.00023421,2]
[388440108,1759168572212,-382.66989352,0.00023422,3]
[388440109,1759168572425,-4168.28010648,0.00023422,3]
[388440110,1759168572775,-330.99501342,0.00023422,3]
[388440111,1759168572896,-1944.48498658,0.00023422,3]
[388440112,1759168572905,-1137.74,0.00023422,3]
[388440113,1759168572915,-568.87,0.00023422,3]
[388440114,1759168572924,-284.43,0.00023422,3]
[388440115,1759168572933,-232.7551199,0.00023425,2]
[388440116,1759168572947,-247.2448801,0.00023425,2]
[388440117,1759168572956,-480.0,0.00023425,2]
[388440118,1759168572967,-480.0,0.00023425,2]
[388440119,1759168572976,-456.20490694,0.00023426,2]
[388440120,1759168579946,-194.55846879,0.00022984,2]
[388440121,1759168579977,-43.79509306,0.00023426,2]
[388440122,1759168580004,-500.0,0.00023426,2]
[388440123,1759168580031,-500.0,0.00023426,2]
[388440124,1759168580058,-500.0,0.00023426,2]
[388440125,1759168580087,-275.8149649,0.00023426,2]
[388440126,1759168580120,-578.41692777,0.00023426,2]
[388440127,1759168580150,-500.0,0.00023426,2]
[388440128,1759168580177,-500.0,0.00023426,2]
[388440129,1759168580205,-500.0,0.00023426,2]
[388440130,1759168580234,-470.42219094,0.00023426,2]
[388440131,1759168580267,-373.99470908,0.00023426,2]
[388440132,1759168580379,-126.00529092,0.00023426,2]
[388440133,1759168580411,-188.87710704,0.00023426,2]
[388440134,1759168580443,-500.0,0.00023426,2]
[388440135,1759168580475,-500.0,0.00023426,2]
[388440136,1759168580504,-157.26267069,0.00023426,2]
[388440137,1759168580535,-500.0,0.00023426,2]
[388440138,1759168580564,-500.0,0.00023426,2]
[388440139,1759168580593,-500.0,0.00023426,2]
[388440140,1759168580623,-500.0,0.00023426,2]
[388440141,1759168580652,-500.0,0.00023426,2]
[388440142,1759168580686,-500.0,0.00023426,2]
[388440143,1759168580715,-239.78012724,0.00023426,2]
[388440144,1759168580747,-76.15960822,0.00023426,2]
[388440145,1759168580974,-423.84039178,0.00023426,2]
[388440146,1759168581004,-500.0,0.00023426,2]
[388440147,1759168581033,-500.0,0.00023426,2]
[388440148,1759168581064,-500.0,0.00023426,2]
[388440149,1759168581095,-407.99560988,0.00023426,2]
[388440150,1759168581124,-500.0,0.00023426,2]
[388440151,1759168581152,-500.0,0.00023426,2]
[388440152,1759168581180,-624.6380774,0.00023426,2]
[388440153,1759168581208,-500.0,0.00023426,2]
[388440154,1759168581237,-500.0,0.00023426,2]
[388440155,1759168581883,-82.51745655,0.00023421,10]
[388440156,1759168581897,-89.15254345,0.00023421,10]
[388440157,1759168581907,-314.71353606,0.00023426,2]
[388440158,1759168581917,-96.13392049,0.00023426,2]
[388440159,1759168581931,-87.06184188,0.00023426,2]
[388440161,1759168610024,-2557.31947488,0.00022959,13]
[388440162,1759168610054,-462.54651505,0.00023191,13]
[388440163,1759168610156,-3960.27802014,0.00023191,13]
[388440164,1759168610495,-480.0,0.00023425,2]
[388440165,1759168610527,-480.0,0.00023425,2]
[388440166,1759168610557,-480.0,0.00023426,2]
[388440167,1759168610585,-316.80423763,0.00023426,2]
[388440168,1759168610615,-500.0,0.00023426,2]
[388440169,1759168610645,-500.0,0.00023426,2]
[388440170,1759168610673,-500.0,0.00023426,2]
[388440171,1759168610704,-500.0,0.00023426,2]
[388440172,1759168610732,-500.0,0.00023426,2]
[388440173,1759168610760,-500.0,0.00023426,2]
[388440174,1759168610802,-500.0,0.00023426,2]
[388440175,1759168610832,-500.0,0.00023426,2]
[388440176,1759168610862,-500.0,0.00023426,2]
[388440177,1759168610891,-500.0,0.00023426,2]
[388440178,1759168610920,-500.0,0.00023426,2]
[388440179,1759168610950,-500.0,0.00023426,2]
[388440180,1759168610980,-592.69288893,0.00023426,2]
[388440181,1759168611008,-514.32175096,0.00023426,2]
[388440182,1759168611037,-380.00487791,0.00023426,2]
[388440183,1759168611065,-500.0,0.00023426,2]
[388440184,1759168611111,-500.0,0.00023426,2]
[388440185,1759168611147,-500.0,0.00023426,2]
[388440186,1759168611178,-500.0,0.00023426,2]
[388440187,1759168611208,-563.77695467,0.00023426,2]
[388440188,1759168611240,-500.0,0.00023426,2]
[388440189,1759168611271,-500.0,0.00023426,2]
[388440190,1759168611302,-500.0,0.00023426,2]
[388440191,1759168611342,-500.0,0.00023426,2]
[388440192,1759168611387,-500.0,0.00023426,2]
[388440193,1759168611424,-228.57983772,0.00023426,2]
[388440194,1759168611491,-415.29641522,0.00023426,2]
[388440195,1759168611529,-480.0,0.00023427,2]
[388440196,1759168611564,-480.0,0.00023427,2]
[388440197,1759168611598,-480.0,0.00023427,2]
[388440198,1759168611636,-495.43616252,0.00023427,2]
[388440199,1759168611669,-480.0,0.00023427,2]
[388440200,1759168611702,-480.0,0.00023427,2]
[388440201,1759168611737,-518.21598988,0.00023427,2]
[388440202,1759168611778,-480.0,0.00023427,2]
[388440203,1759168611814,-480.0,0.00023427,2]
[388440204,1759168611958,-605.28,0.00023426,2]
[388440205,1759168611990,-480.0,0.00023427,2]
[388440206,1759168612023,-480.0,0.00023427,2]
[388440207,1759168620292,352.14990458,0.00022416,2]
[388440208,1759168621116,919.17,0.00023426,2]
[388440209,1759168621703,-376.38122859,0.00023428,2]
[388440210,1759168622823,300.0,0.00023427,2]
[388440211,1759168624512,-152.0,0.00023428,2]
[388440212,1759168626398,-203.56282027,0.00023428,2]
[388440213,1759168629234,1595.25863098,0.0002333,2]
[388440214,1759168629264,-1132.50915571,0.00023428,2]
[388440215,1759168630209,-6833.43146444,0.00023428,2]
[388440216,1759168630491,-10000.01,0.00023428,2]
[388440217,1759168630601,-4149.5064598,0.00023428,2]
[388440218,1759168630624,-1700.9970804,0.00023428,2]
[388440219,1759168630922,-480.0,0.0002343,2]
[388440220,1759168630951,-480.0,0.0002343,2]
[388440221,1759168630980,-480.0,0.0002343,2]
[388440222,1759168631007,-480.0,0.0002343,2]
[388440223,1759168631036,-525.23,0.0002343,2]
[388440224,1759168631065,-480.0,0.0002343,2]
[388440225,1759168631092,-480.0,0.0002343,2]
[388440226,1759168631120,-480.0,0.0002343,2]
[388440227,1759168631283,-3301.92,0.0002343,2]
[388440228,1759168631312,-480.0,0.0002343,2]
[388440229,1759168631339,-480.0,0.0002343,2]
[388440230,1759168631365,-480.0,0.0002343,2]
[388440231,1759168631457,-1231.2,0.0002343,2]
[388440232,1759168631487,-480.0,0.0002343,2]
[388440233,1759168631517,-480.0,0.0002343,2]
[388440234,1759168631545,-2242.97,0.0002343,2]
[388440235,1759168631897,-22.75,0.0002343,2]
[388440236,1759168631932,-480.0,0.0002343,2]
[388440237,1759168631958,-628.92,0.0002343,2]
[388440238,1759168631968,-480.0,0.0002343,2]
[388440239,1759168631976,-480.0,0.0002343,2]
[388440240,1759168631985,-480.0,0.0002343,2]
[388440241,1759168631994,-940.31,0.0002343,2]
[388440242,1759168632004,-365.41,0.0002343,2]
[388440243,1759168632082,480.0,0.00023426,2]
[388440244,1759168632225,-114.59,0.0002343,2]
[388440245,1759168632249,-385.41,0.0002343,2]
[388440246,1759168633723,-180.0,0.0002343,2]
[388440247,1759168634084,480.0,0.00023425,2]
[388440248,1759168636866,-175.97549852,0.0002343,2]
[388440249,1759168640134,-335.54356992,0.00023426,2]
[388440250,1759168641396,-197.12820393,0.00023426,2]
[388440251,1759168641426,-1200.0,0.00023429,2]
[388440252,1759168641455,-1055.12450148,0.0002343,2]
[388440253,1759168641484,-1942.55,0.0002343,2]
[388440254,1759168641515,-480.0,0.0002343,2]
[388440255,1759168641705,-480.0,0.0002343,2]
[388440256,1759168641734,-480.0,0.0002343,2]
[388440257,1759168641763,-480.0,0.0002343,2]
[388440258,1759168641792,-542.65,0.0002343,2]
[388440259,1759168641820,-1137.61,0.0002343,2]
[388440260,1759168641850,-766.55,0.0002343,2]
[388440261,1759168641879,-844.25,0.0002343,2]
[388440262,1759168642025,-552.96,0.0002343,2]
[388440263,1759168642054,-480.0,0.0002343,2]
[388440264,1759168642082,-1505.34,0.0002343,2]
[388440265,1759168642109,-480.0,0.0002343,2]
[388440266,1759168642143,-480.0,0.0002343,2]
[388440267,1759168642171,-1282.8,0.0002343,2]
[388440268,1759168642267,-437.81,0.0002343,2]
[388440269,1759168642295,-480.0,0.0002343,2]
[388440270,1759168642321,-480.0,0.0002343,2]
[388440271,1759168642349,-480.0,0.0002343,2]
[388440272,1759168642376,-481.21,0.0002343,2]
[388440273,1759168642405,-480.0,0.0002343,2]
[388440274,1759168642434,-1189.1,0.0002343,2]
[388440275,1759168642462,-500.0,0.00023431,2]
[388440276,1759168642490,-421.04,0.00023431,2]
[388440277,1759168642647,-101.69,0.00023431,2]
[388440278,1759168642677,-480.0,0.00023431,2]
[388440279,1759168642705,-1094.44,0.00023431,2]
[388440280,1759168642732,-480.0,0.00023431,2]
[388440281,1759168642759,-480.0,0.00023431,2]
[388440282,1759168642788,-480.0,0.00023431,2]
[388440283,1759168642819,-480.0,0.00023431,2]
[388440284,1759168642848,-516.83,0.00023431,2]
[388440285,1759168642877,-480.0,0.00023431,2]
[388440286,1759168643044,-820.41,0.00023431,2]
[388440287,1759168643074,-803.56,0.00023431,2]
[388440288,1759168643103,-539.91,0.00023431,2]
[388440289,1759168643136,-480.0,0.00023431,2]
[388440290,1759168643166,-480.0,0.00023431,2]
[388440291,1759168643197,-480.0,0.00023431,2]
[388440292,1759168643230,-480.0,0.00023431,2]
[388440293,1759168643259,-746.62,0.00023431,2]
[388440295,1759168643721,-339.01,0.00023431,2]
[388440296,1759168643731,-140.99,0.00023431,2]
[388440297,1759168643751,-366.99,0.00023431,2]
[388440298,1759168643761,-718.64,0.00023431,2]
[388440299,1759168660102,-528.55,0.00023426,2]
[388440300,1759168660129,-480.0,0.00023426,2]
[388440301,1759168660159,-480.0,0.00023426,2]
[388440302,1759168660186,-316.51567343,0.00023426,2]
[388440303,1759168660217,-500.0,0.00023426,2]
[388440304,1759168660247,-500.0,0.00023426,2]
[388440305,1759168660276,-637.61895507,0.00023426,2]
[388440306,1759168660306,-321.61080629,0.00023426,2]
[388440307,1759168660336,-258.98679106,0.00023426,2]
[388440308,1759168660366,-500.0,0.00023426,2]
[388440309,1759168660398,-453.4455483,0.00023426,2]
[388440310,1759168660494,-46.5544517,0.00023426,2]
[388440311,1759168660524,-178.16924982,0.00023426,2]
[388440312,1759168660608,-1070.34,0.0002343,2]
[388440313,1759168660643,-480.0,0.0002343,2]
[388440314,1759168660673,-1716.01,0.0002343,2]
[388440315,1759168660702,-106.14,0.00023431,2]
[388440316,1759168660733,-480.0,0.00023431,2]
[388440317,1759168660760,-480.0,0.00023431,2]
[388440318,1759168660787,-261.46259696,0.00023431,2]
[388440319,1759168660914,-362.65740304,0.00023431,2]
[388440320,1759168660942,-620.83,0.00023431,2]
[388440321,1759168660969,-480.0,0.00023431,2]
[388440322,1759168661008,-480.0,0.00023431,2]
[388440323,1759168661035,-513.68,0.00023431,2]
[388440324,1759168661062,-1060.4,0.00023431,2]
[388440325,1759168661091,-480.0,0.00023431,2]
[388440326,1759168661118,-800.3,0.00023431,2]
[388440327,1759168661212,-480.0,0.00023431,2]
[388440328,1759168661240,-480.0,0.00023431,2]
[388440329,1759168661267,-744.1,0.00023431,2]
[388440330,1759168661295,-480.0,0.00023431,2]